Cogmind - Beta 10.2 @@@ ROGUE MODE // 2020.11.02 @ 08:26:55 // Halloween2020/ForbiddenLore Player: Ty Piggbottom Result: Destroyed by G-34 Mercenary with Small Laser Performance ------------- Evolutions (1) 500 Regions Visited (3) 600 Robots Destroyed (123) 615 Value Destroyed (2290) 2290 Prototype IDs (6) 120 Alien Tech Used (0) 0 Bonus (608) 608 TOTAL SCORE: 4733 Bonus ------- High Alert Combat Kills 565 Follower Combat Kills 151 Friendly Fire -108 Cogmind --------- Core Integrity 0/400 Matter 290/300 Energy 265/265 System Corruption 0% Temperature Cool (6) Movement Rolling (100) Location -9/Materials Parts ------- > --- POWER (1) -------- Improved Ion Engine > --- PROPULSION (2) --- Compact Wheel Compact Wheel > --- UTILITY (4) ------ Large Storage Unit Improved Targeting Computer Hacking Suite Hacking Suite > --- WEAPON (2) ------- Mini Grenade Launcher Katana > --- INVENTORY (10) --- Hardened Light Armor Plating Heavy EM Pulse Gun Improved Assault Rifle High-powered Shotgun High-powered Shotgun Light Cannon Assault Cannon Assault Cannon Bore Cannon Datajack Peak State ------------ > --- POWER ------------ Improved Ion Engine > --- PROPULSION ------- Compact Wheel Compact Wheel > --- UTILITY ---------- Power Amplifier Large Storage Unit Hacking Suite Hacking Suite > --- WEAPON ----------- High-powered Shotgun Katana > --- INVENTORY -------- Improved Targeting Computer Medium Armor Plating Improved Assault Rifle High-powered Shotgun Assault Cannon Assault Cannon Bore Cannon Rocket Launcher Mini Grenade Launcher Datajack [Rating: 24] Favorites ----------- Power Light Nuclear Core Engine Improved Ion Engine Power Core Light Nuclear Core Propulsion Compact Wheel Wheel Compact Wheel Hover Unit Hover Unit Utility Hacking Suite Device Sensor Array Storage Large Storage Unit Processor Signal Interpreter Hackware Hacking Suite Protection Light Armor Plating Weapon Heavy EM Pulse Gun Energy Gun Heavy EM Pulse Gun Ballistic Gun High-powered Shotgun Ballistic Cannon Bore Cannon Launcher Grenade Launcher Slashing Weapon Katana Special Melee Weapon Datajack Build | -11 -10 -10 -9 ------- Run | Scr Mat Min Mat Slots Evolved 2 | . . . 2 Power . | . . . . Propulsion . | . . . . Utility 2 | . . . 2 Weapon . | . . . . Parts Attached 144 | 8 31 8 97 Power 22 | 2 4 1 15 Engine 13 | 2 4 . 7 Core 9 | . . 1 8 Reactor . | . . . . Propulsion 21 | 2 5 . 14 Treads . | . . . . Leg . | . . . . Wheel 17 | 2 1 . 14 Hover 4 | . 4 . . Flight . | . . . . Utility 23 | 1 6 . 16 Device 7 | . 2 . 5 Storage 4 | 1 . . 3 Processor 5 | . 2 . 3 Hackware 2 | . . . 2 Protection 5 | . 2 . 3 Artifact . | . . . . Weapon 78 | 3 16 7 52 Energy Gun 15 | 1 6 3 5 Energy Cannon . | . . . . Ballistic Gun 11 | 2 1 . 8 Ballistic Cannon 10 | . . 1 9 Launcher 32 | . 9 2 21 Special Weapon . | . . . . Impact Weapon . | . . . . Slashing Weapon 8 | . . 1 7 Piercing Weapon . | . . . . Special Melee Weapon 2 | . . . 2 Unidentified Prototypes 4 | . . . 4 Parts Lost 13 | . . 1 12 Power 2 | . . . 2 Propulsion 4 | . . . 4 Utility 1 | . . . 1 Weapon 6 | . . 1 5 Highest Loss Streak 4 | . . 1 4 Average Slot Usage (%) 96 | . 96 99 96 Engine 7 | . 13 3 5 Core 4 | . . 11 4 Wheel 14 | . 6 . 20 Hover 9 | . 20 28 1 Device 6 | . 10 14 3 Storage 7 | . 3 . 11 Processor 10 | . 9 14 10 Hackware 9 | . . . 15 Energy Gun 9 | . 17 13 6 Ballistic Gun 3 | . 1 . 5 Ballistic Cannon 1 | . . . 1 Launcher 7 | . 9 13 5 Slashing Weapon 1 | . . . 2 Naked Turns . | . . . . Heaviest Build 36 | 13 17 12 36 Greatest Support 32 | 26 26 12 32 Greatest Overweight (x) 2 | 1 2 . 1 Average Overweight (x) . | . . . . Largest Inventory Capacity 14 | 6 6 4 14 Average Capacity 7 | 5 4 4 9 Most Carried 10 | 6 6 4 10 Average Carried 6 | 3 4 3 8 Final Capacity 10 | 6 4 4 10 Final Carried 10 | 6 4 4 10 Class Distribution -------------------- 79% | Scavenger-Mutant 9% | Hacker-Mutant 7% | Mutant 4% | Scavenger-Assassin Dominant Class ---------------- Scavenger-Mutant | -10/Materials Scavenger-Mutant | -10/Mines Scavenger-Mutant | -9/Materials Resources | -11 -10 -10 -9 ----------- Run | Scr Mat Min Mat Matter Collected 2839 | 283 421 205 1930 Remotely . | . . . . Salvage Created 3995 | 96 719 502 2678 Parts 263 | 1 32 34 196 Haulers Intercepted 8 | . 2 . 6 Recyclers Shooed 13 | . 4 3 6 Parts Field Recycled . | . . . . Retrieved Matter . | . . . . Parts Self-Destructed . | . . . . Prevented . | . . . . Kills | -11 -10 -10 -9 ------- Run | Scr Mat Min Mat Combat Hostiles Destroyed 68 | . 7 12 49 Melee 5 | . . . 5 Guns 20 | . 3 1 16 Cannons 3 | . . . 3 AOE 40 | . 4 11 25 Classes Destroyed 12 | 1 5 1 5 Worker 7 | . 1 . 6 Builder 8 | . . . 8 Tunneler 3 | . . 1 2 Hauler 8 | . 2 . 6 Recycler 20 | 1 5 5 9 Operator 4 | . 1 . 3 Watcher 4 | . . . 4 Swarmer 25 | . 3 12 10 Grunt 32 | . 4 . 28 Brawler 2 | . . . 2 Protector 2 | . . . 2 Sentry 8 | . . . 8 Best Kill Streak 12 | 1 3 3 12 Combat Bots Only 4 | . 3 3 4 Max Kills in Single Turn 4 | 1 1 3 4 Gunslinging . | . . . . Exploded 3 | . 1 3 3 Melee 1 | . . . 1 Uniques/NPCs Destroyed . | . . . . Combat | -11 -10 -10 -9 -------- Run | Scr Mat Min Mat Damage Taken 2301 | . 211 113 1977 Core 437 | . 15 17 405 Absorbed by Shields . | . . . . Core Remaining (%) 93 | 100 . 87 . Volleys Fired 259 | 2 53 36 168 Largest 2 | 2 2 1 2 Hottest 102 | 60 80 45 102 Shots Fired 362 | 4 75 36 247 Gun 242 | 4 64 21 153 Cannon 43 | . . . 43 Launcher 77 | . 11 15 51 Special . | . . . . Kinetic 95 | 2 7 . 86 Thermal . | . . . . Explosive 77 | . 11 15 51 Electromagnetic 190 | 2 57 21 110 Robot Hit Streak 12 | 4 9 3 12 Robot Miss Streak 9 | . 3 4 9 Penetration Max . | . . . . Secondary Targets 1 | . . . 1 Max Gunslinging Chain 1 | . . . 1 Shots Hit Robots 209 | 4 45 18 142 Core Hits 170 | 2 27 23 118 Critical Hits 8 | . . . 8 Critical Kills 5 | . . . 5 Critical Parts Destroyed 3 | . . . 3 Melee Attacks 25 | . . 2 23 Impact . | . . . . Slashing 19 | . . 2 17 Piercing . | . . . . Sneak Attacks 8 | . . 1 7 Combat Hostiles 1 | . . . 1 Follow-up Attacks . | . . . . Damage Inflicted 7904 | 55 1280 829 5740 Guns 2458 | 54 572 236 1596 Cannons 332 | . . . 332 Explosions 4562 | . 708 494 3360 Melee 551 | . . 99 452 Ramming 1 | 1 . . . Kinetic 1010 | 29 59 . 922 Thermal 468 | . 190 . 278 Explosive 4094 | . 518 494 3082 Electromagnetic 1780 | 25 513 236 1006 Impact . | . . . . Slashing 551 | . . 99 452 Piercing . | . . . . Highest Corruption . | . . . . Average Corruption . | . . . . Corruption Purged . | . . . . Overload Shots . | . . . . Overflow Damage 259 | . 67 . 192 Projectiles 5 | . . . 5 Explosions 195 | . 67 . 128 Melee 59 | . . . 59 Knockbacks . | . . . . Impact . | . . . . Kinetic . | . . . . Secondary . | . . . . Self-Inflicted Damage 370 | . 34 56 280 Shots 16 | . 3 4 9 Rammed 1 | 1 . . . Targets Rammed 1 | 1 . . . Kicked . | . . . . Crushed . | . . . . Highest Temperature 239 | . 98 62 239 Average Temperature 40 | . 30 21 51 Received Heat Transfer 753 | . 87 . 666 Siege Activations . | . . . . Robots Corrupted . | . . . . Combat Hostiles . | . . . . Parts Fried 11 | . 6 1 4 Impact Corruptions . | . . . . Robots Melted . | . . . . Combat Hostiles . | . . . . Parts Melted . | . . . . Heat Transferred 500 | . 200 . 300 Parts Sabotaged . | . . . . Parts Stolen . | . . . . Parts Stripped . | . . . . Power Chain Reactions 7 | . 2 . 5 Missiles Intercepted . | . . . . Alert | -11 -10 -10 -9 ------- Run | Scr Mat Min Mat Peak Influence 1222 | 5 210 273 1222 Initial 68 | . 3 1 68 Average 521 | 2 63 190 782 Maximum Alert Level 4 | . 1 1 4 Low Security (%) 30 | 100 90 44 3 Level 1 18 | . 9 55 12 Level 2 13 | . . . 21 Level 3 27 | . . . 45 Level 4 10 | . . . 16 Level 5 . | . . . . High Security . | . . . . Max Security . | . . . . Squads Dispatched 14 | . 2 . 12 Investigation 7 | . 1 . 6 Extermination . | . . . . Reinforcement 5 | . 1 . 4 Assault 2 | . . . 2 Garrison . | . . . . Intercept . | . . . . Construction Impeded . | . . . . Haulers Reinforced . | . . . . Stealth | -11 -10 -10 -9 --------- Run | Scr Mat Min Mat Distress Signals 7 | . 1 . 6 Communications Jammed . | . . . . Distress Signals . | . . . . Times Spotted 95 | . 10 5 80 Peak Tracking Total 7 | . 3 2 7 Tactical Retreats 1 | . . . 1 Traps | -11 -10 -10 -9 ------- Run | Scr Mat Min Mat Traps Triggered 5 | . 5 . . Indirectly . | . . . . Trap Hack Attempts . | . . . . Triggered . | . . . . Disarmed . | . . . . Reprogrammed . | . . . . Reused . | . . . . Traps Extracted . | . . . . Installed . | . . . . Triggered . | . . . . Machines | -11 -10 -10 -9 ---------- Run | Scr Mat Min Mat Machines Disabled 12 | . 2 2 8 Max in Single Turn 1 | . 1 1 1 Machines Sabotaged . | . . . . Garrisons Compromised . | . . . . Overloaded Fab Kills . | . . . . Fab Network Shutdowns . | . . . . Hacking | -11 -10 -10 -9 --------- Run | Scr Mat Min Mat Machines Accessed 16 | . 6 . 10 Terminals 10 | . 3 . 7 Fabricators . | . . . . Repair Stations 3 | . 1 . 2 Recycling Units 3 | . 2 . 1 Scanalyzers . | . . . . Garrison Access . | . . . . Total Hacks 66 | . 17 . 49 Successful 51 | . 14 . 37 Failed 15 | . 3 . 12 Catastrophic 1 | . . . 1 Database Lockouts . | . . . . Manual . | . . . . Terminals 42 | . 9 . 33 Fabricators . | . . . . Repair Stations 17 | . 4 . 13 Recycling Units 7 | . 4 . 3 Scanalyzers . | . . . . Garrison Access . | . . . . Terminal Hacks 32 | . 7 . 25 Record 6 | . 1 . 5 Robot Analysis 2 | . 1 . 1 Prototype ID Bank 1 | . 1 . . Branch Access Points 1 | . . . 1 Scanalyzer Index 1 | . . . 1 Locate Traps 3 | . 1 . 2 Dispatch Records 2 | . . . 2 Maintenance Status 1 | . . . 1 Security Status 1 | . . . 1 Surveillance Status 1 | . . . 1 Transport Status 4 | . 1 . 3 Reinforcement Status 1 | . . . 1 Hauler Manifests 2 | . 1 . 1 Registered Components 1 | . 1 . . Registered Prototypes 1 | . . . 1 Zone Layout 4 | . . . 4 Fabricator Hacks . | . . . . Repair Station Hacks 13 | . 4 . 9 Scan Component 8 | . 3 . 5 Repair 5 | . 1 . 4 Recycling Unit Hacks 6 | . 3 . 3 Report Inventory 5 | . 2 . 3 Retrieve Components 1 | . 1 . . Scanalyzer . | . . . . Garrison Access Hacks . | . . . . Unauthorized Hacks . | . . . . Terminals . | . . . . Fabricators . | . . . . Repair Stations . | . . . . Recycling Units . | . . . . Scanalyzers . | . . . . Garrison Access . | . . . . Data Cores Recovered . | . . . . Used . | . . . . Hacking Detections 12 | . 3 . 9 Full Trace Events 7 | . 1 . 6 Feedback Events . | . . . . Feedback Blocked . | . . . . Robot Schematics Acquired . | . . . . Robots Built . | . . . . Matter . | . . . . Time . | . . . . Total Robot Build Rating . | . . . . Part Schematics Acquired . | . . . . Parts Built . | . . . . Matter . | . . . . Time . | . . . . Total Part Build Rating . | . . . . Parts Repaired 5 | . 1 . 4 Time 141 | . 26 . 115 Parts Recycled . | . . . . Recycled Matter . | . . . . Retrieved Matter . | . . . . Retrieved Components 2 | . 2 . . Parts Scanalyzed . | . . . . Part Schematics Acquired . | . . . . Parts Damaged . | . . . . Bothacking | -11 -10 -10 -9 ------------ Run | Scr Mat Min Mat Used RIF Installer . | . . . . Robots Hacked 3 | . . . 3 Non-combat 2 | . . . 2 Combat 1 | . . . 1 Robot Hacks Applied 3 | . . . 3 parse_system 3 | . . . 3 Relay Couplers Released . | . . . . Robots Rewired . | . . . . Allies Hacked . | . . . . Hacks Repelled . | . . . . Allies | -11 -10 -10 -9 -------- Run | Scr Mat Min Mat Total Allies 3 | . . 3 . Largest Group 3 | . . 3 3 Highest-Rated Group 40 | . . 40 40 Highest-Rated Ally 16 | . . 16 16 Total Orders . | . . . . Ally Attacks 36 | . . 2 34 Total Damage 407 | . . . 407 Kills 6 | . . . 6 Allies Corrupted . | . . . . Allies Melted . | . . . . Intel | -11 -10 -10 -9 ------- Run | Scr Mat Min Mat Robot Analysis Total 2 | . 1 . 1 Derelict Logs Recovered 1 | . . 1 . Drone Launches . | . . . . Drone Recoveries . | . . . . Exploration | -11 -10 -10 -9 ------------- Run | Scr Mat Min Mat Turns Passed 3889 | 67 872 564 2386 Spaces Moved 3351 | 46 955 749 1601 Core 2 | 2 . . . Treads . | . . . . Legs . | . . . . Wheels 1670 | 44 152 . 1474 Hover 1679 | . 803 749 127 Flight . | . . . . Fastest Speed 50 | 50 56 56 56 Average Speed 77 | 87 63 56 96 Slowest Speed 180 | 90 180 56 110 Overloaded Moves . | . . . . Propulsion Burnouts . | . . . . Robots Hopped . | . . . . Cave-ins Triggered . | . . . . Exploration Rate (%) 73 | 4 99 99 92 Regions Visited 3 Branch Regions 1 Pre-discovered Areas . | . . . . Known Exits Taken 2 | . 1 1 . Unknown Exits Taken 1 | 1 . . . Scrap Searched 1 | . . 1 . Spaces Dug 77 | . . 38 39 Terrain Destroyed 458 | . 61 105 292 Melee . | . . . . Projectile 16 | . . . 16 AOE 442 | . 61 105 276 Terrain Rammed . | . . . . Walls Destroyed . | . . . . Machines Disabled . | . . . . Actions | -11 -10 -10 -9 --------- Run | Scr Mat Min Mat Total 4224 | 65 1151 852 2156 Wait 291 | . 69 50 172 Move 3348 | 45 954 748 1601 Hop . | . . . . Pick Up 68 | 7 17 3 41 Fast Attach 45 | 6 12 2 25 Attach 23 | . 6 2 15 Detach 18 | . 4 1 13 Swap 76 | 2 13 4 57 Drop 70 | 2 23 4 41 Fire 259 | 2 53 36 168 Melee 25 | . . 2 23 Ram 1 | 1 . . . Kick . | . . . . Crush . | . . . . Escape Stasis . | . . . . Rewire . | . . . . Trap . | . . . . Miscellaneous . | . . . . Route ------- -11/Scrapyard -10/Materials (discovered 5 exits: *Mat x3 / *Min x2) -10/Mines (discovered 3 exits: *Mat x2 / [*Exi]) -9/Materials (discovered 5 exits: *Mat x3 / *Min x2) History --------- Turn | Location | Event 22 | -11/Scrapyard | Discovered new exit (range 16) 68 | -11/Scrapyard | Entered Materials 183 | -10/Materials | Met 8R-AWN 211 | -10/Materials | Discovered new exit (range 12) 402 | -10/Materials | Discovered new exit (range 3) 586 | -10/Materials | Discovered new exit (range 9) 596 | -10/Materials | Build established: Scavenger-Mutant 596 | -10/Materials | Identified exit to Materials 679 | -10/Materials | Repaired EM Pulse Gun 701 | -10/Materials | Discovered new exit (range 9) 842 | -10/Materials | Discovered exit to Materials (range 9) 940 | -10/Materials | Identified exit to Mines 940 | -10/Materials | Entered Mines 942 | -10/Mines | Followed 8R-AWN into the Mines 964 | -10/Mines | Assisted by bots powering up and referring to "LRC-V3" 1013 | -10/Mines | Learned 4 Materials zone layouts 1017 | -10/Mines | A weapon hastily lodged in a ceiling crevice suddenly fell to the ground 1178 | -10/Mines | Discovered exit to Materials (range 5) 1375 | -10/Mines | Discovered new exit (range 5) 1470 | -10/Mines | Discovered exit to Materials (range 13) 1504 | -10/Mines | Entered Materials 1504 | -9/Materials | Accompanied by 3 allies 1504 | -9/Materials | Evolved 2 slots: Utility x2 1505 | -9/Materials | Identified exit to Materials 1505 | -9/Materials | Identified exit to Mines 1937 | -9/Materials | Lost 3 parts (1n1u1w) 2219 | -9/Materials | Lost 4 parts (1n3w) 2369 | -9/Materials | Repaired Com. Wheel 2410 | -9/Materials | Repaired Katana 2450 | -9/Materials | Repaired Lgt. Nuclear Core 2704 | -9/Materials | First assault squad dispatched 2728 | -9/Materials | Core integrity fell below 50% 2989 | -9/Materials | Core integrity fell below 20% 3016 | -9/Materials | Repaired Com. Wheel 3028 | -9/Materials | Discovered exit to Materials (range 16) 3890 | -9/Materials | Destroyed by G-34 Mercenary with Small Laser Last Messages --------------- Heat Sink (33%) Faulty Cld. Ion Engine (88%) Sml. Matter Pod (60%) Flight Unit (50%) 03792_ R-06 Scavenger destroyed. 03807_ Dropped Com. Wheel. 03808_ Acquired 10 matter. 03830_ Connecting with Terminal... >>Enumerate(Transport) Retrieving latest reported positions... No active transport squads found. >>Enumerate(Squads) Retrieving dispatch records... Found 1 active squad: 1x Investigation 03830_ ALERT: Suspicious activity at Terminal M012. Dispatching Investigation squad. 03880_ Acquired 10 matter. 03882_ G-34 Mercenary destroyed. 03882_ K-01 Serf destroyed. Map ----- +----------------------------------------------------+ | ??????????????????????????????????????? | | ??????????????????????????????????????? | | ?????????????????????????????#####????? | | ????????????????????????????##"""##???? | | #####??????????????????????##"!!!"##??? | | #?????########?????????#"" ""#??? | | ######????# T #?????????# #??? | | # #????# [ ########### > #??? | | # #????# # # #??? | | # #????# # # #??? | | ! ##????# # """ """ ## ##??? | | ######?# """ # """ """ ### ##???? | | ######## """ # """ """ #?# #????? | | ##### # """ # #?# #????? | | # # #?# #????? | | + """ # ### ##???? | | # """ #########+## #???? | | * = #= """ #?????# #???? | | = !% # ####### #???? | | = ############## ^^^#???? | | ####### # [[[ ^ ^#???? | | % ####### #= [[ #######? | | = + +% [[ # #? | | ####### # T #? | | ####### # # #? | | #????## = # @ # #? | | ######### = ### ###? | | g !%[[ #??? | | g%*% ####??? | | ###+##### ! #?????? | | # "####+####### + ###+#####??? | | # "# #[ = # # [ #??? | | # ##""" # ! + + #??? | | # ##""" # # # #??? | | # ##""" ######### % #########??? | | # ## #?????####+#####???????? | | # ##""" #?????#!%= #???????? | | # ##""" #?????#!%="""""#???????? | | # ##""" #?????# =!"""""#???????? | | ####### #?????# %"""""#???????? | | ????????########?????# """""#???????? | | ?????????????????????# %"""""#???????? | | ?????????????????????# """""#???????? | | ?????????????????????# """""#???????? | | ?????????????????????# #???????? | | ?????????????????????#+########???????? | | ?????????????????????# #??????????????? | | ?????????????????????# #??????????????? | | ?????????????????????# ###########????? | | ?????????????????????# ## #????? | +----------------------------------------------------+ Best States ------------- Heat Dissipation 42 Energy Generation 14 Energy Capacity 265 Matter Stores 300 Matter Capacity 300 Sight Range 18 Robot Scan Range 10 Terrain Scan Density 10 ECM Strength 1 Power Amplification 20 Armor Coverage 225 Evasion (%) 53 Targeting Accuracy 6 Offensive Hacking 20 Item Schematics ----------------- None Robot Schematics ------------------ None Fabricated ------------ Nothing Alien Tech Used ----------------- None Achievements -------------- Backstab Dramatic Entrance Challenges ------------ None Game ------ Seed MasterPotentialShielding Manual? 0 Play Time 02:48:05 Cumulative 92.8 hours Start 2020.11.01 @ 21:46:38 End 2020.11.02 @ 08:26:55 Sessions 7 Manual Loads 0 Difficulty Rogue Special Mode Halloween2020/ForbiddenLore Game No. 31 Rogue 31 Adventurer 0 Explorer 0 Win Type - Total 0 Types 0/0/0/0/0/0/0/0/0 Lore% 4 Gallery% 11 Achievement% 10 Wizard Run 0 Options --------- ASCII 0 Keyboard 1 Movement Vi Keybinds 0 Fullscreen 1 Font 12/Smallcaps Map View 83x54 Tactical HUD 1 Map Filters NONE Filters NONE Steam 1 RUN: a8f0a0bb-33ca-440b-80ad-1dff008b6637